fUST/lending_fUST_20260512
["ID","MTS","AMOUNT","RATE_DAILY","PERIOD"]
[422071952,1778550632000,-500.0,0.00010684,2]
[422071954,1778550632000,-500.0,0.00010684,2]
[422071943,1778550632000,-157.97684933,0.00010684,2]
[422071955,1778550632000,-197.43792877,0.00010684,2]
[422071959,1778550632000,-277.47064871,0.00010684,2]
[422071960,1778550632000,-500.0,0.00010684,2]
[422071953,1778550632000,-500.0,0.00010684,2]
[422072048,1778550638000,-501.85506008,0.00010958,2]
[422072009,1778550638000,-500.0,0.00010958,2]
[422072008,1778550638000,-500.0,0.00010958,2]
[422072006,1778550638000,-353.37847694,0.00010958,2]
[422072022,1778550638000,-99.22177835,0.00010958,2]
[422072011,1778550638000,-500.0,0.00010958,2]
[422072013,1778550638000,-23.39679805,0.00010958,2]
[422072020,1778550638000,-476.60320195,0.00010958,2]
[422072039,1778550638000,-502.26683212,0.00010958,2]
[422072037,1778550638000,-400.77822165,0.00010958,2]
[422072052,1778550638000,-502.63124541,0.00010958,2]
[422072054,1778550638000,-500.0,0.00010958,2]
[422072056,1778550638000,-500.0,0.00010958,2]
[422072040,1778550638000,-296.95494623,0.00010958,2]
[422072058,1778550638000,-500.0,0.00010958,2]
[422072046,1778550638000,-502.8422378,0.00010958,2]
[422072044,1778550638000,-500.0,0.00010958,2]
[422072042,1778550638000,-103.30020984,0.00010958,2]
[422072060,1778550638000,-1145.26,0.00010958,2]
[422072050,1778550638000,-502.86,0.00010958,2]
[422072061,1778550638000,-500.0,0.00010958,2]
[422072145,1778550639000,-722.62,0.00010958,2]
[422072154,1778550639000,-1739.61,0.00010958,2]
[422072153,1778550639000,-1633.85,0.00010958,2]
[422072138,1778550639000,-500.0,0.00010958,2]
[422072130,1778550639000,-500.0,0.00010958,2]
[422072132,1778550639000,-500.0,0.00010958,2]
[422072128,1778550639000,-500.0,0.00010958,2]
[422072126,1778550639000,-500.0,0.00010958,2]
[422072149,1778550639000,-2635.82,0.00010958,2]
[422072124,1778550639000,-2041.99,0.00010958,2]
[422072133,1778550639000,-500.0,0.00010958,2]
[422072140,1778550639000,-707.39,0.00010958,2]
[422072156,1778550639000,-579.76,0.00010958,2]
[422072143,1778550639000,-591.19,0.00010958,2]
[422072147,1778550639000,-500.0,0.00010958,2]
[422072136,1778550639000,-897.07,0.00010958,2]
[422072151,1778550639000,-500.0,0.00010958,2]
[422072158,1778550639000,-500.0,0.00010958,2]
[422072134,1778550639000,-500.0,0.00010958,2]
[422072162,1778550639000,-500.0,0.00010958,2]
[422072164,1778550639000,-1605.34,0.00010958,2]
[422072160,1778550639000,-500.0,0.00010958,2]
[422072166,1778550639000,-500.0,0.00010958,2]
[422072168,1778550639000,-500.0,0.00010958,2]
[422072170,1778550639000,-500.0,0.00010958,2]
[422072120,1778550639000,-3006.86,0.00010958,2]
[422072142,1778550639000,-974.04,0.00010958,2]
[422072122,1778550639000,-689.32,0.00010958,2]
[422072082,1778550639000,-150.30862241,0.00010958,2]
[422072117,1778550639000,-500.0,0.00010958,2]
[422072172,1778550639000,-500.0,0.00010958,2]
[422072063,1778550639000,-371.69257154,0.00010958,2]
[422072065,1778550639000,-500.0,0.00010958,2]
[422072067,1778550639000,-500.0,0.00010958,2]
[422072080,1778550639000,-1057.47,0.00010958,2]
[422072070,1778550639000,-500.0,0.00010958,2]
[422072078,1778550639000,-500.0,0.00010958,2]
[422072074,1778550639000,-500.0,0.00010958,2]
[422072072,1778550639000,-500.0,0.00010958,2]
[422072076,1778550639000,-500.0,0.00010958,2]
[422072084,1778550639000,-500.0,0.00010958,2]
[422072086,1778550639000,-500.0,0.00010958,2]
[422072088,1778550639000,-500.0,0.00010958,2]
[422072098,1778550639000,-500.0,0.00010958,2]
[422072103,1778550639000,-500.0,0.00010958,2]
[422072100,1778550639000,-500.0,0.00010958,2]
[422072106,1778550639000,-750.68,0.00010958,2]
[422072102,1778550639000,-545.97,0.00010958,2]
[422072109,1778550639000,-500.0,0.00010958,2]
[422072107,1778550639000,-1019.09,0.00010958,2]
[422072096,1778550639000,-500.0,0.00010958,2]
[422072090,1778550639000,-500.0,0.00010958,2]
[422072092,1778550639000,-500.0,0.00010958,2]
[422072094,1778550639000,-500.0,0.00010958,2]
[422072111,1778550639000,-220.65104365,0.00010958,2]
[422072113,1778550639000,-500.0,0.00010958,2]
[422072115,1778550639000,-500.0,0.00010958,2]
[422072119,1778550639000,-1352.3,0.00010958,2]
[422072178,1778550639000,-12194.01,0.00010958,2]
[422072206,1778550639000,-500.0,0.00010958,2]
[422072180,1778550639000,-253.58437593,0.00010958,2]
[422072243,1778550639000,-300.0,0.00011063,2]
[422072245,1778550639000,-300.0,0.00011063,2]
[422072247,1778550639000,-300.0,0.00011063,2]
[422072237,1778550639000,-160.0,0.00011049,2]
[422072251,1778550639000,-300.0,0.00011063,2]
[422072250,1778550639000,-300.0,0.00011063,2]
[422072252,1778550639000,-300.0,0.00011063,2]
[422072255,1778550639000,-300.0,0.00011063,2]
[422072254,1778550639000,-300.0,0.00011063,2]
[422072256,1778550639000,-300.0,0.00011063,2]
[422072262,1778550639000,-500.0,0.00011067,2]
[422072260,1778550639000,-300.0,0.00011063,2]
[422072241,1778550639000,-300.0,0.00011063,2]
[422072266,1778550639000,-500.0,0.00011067,2]
[422072261,1778550639000,-204.4994935,0.00011067,2]
[422072263,1778550639000,-450.10063691,0.00011067,2]
[422072257,1778550639000,-300.0,0.00011063,2]
[422072259,1778550639000,-300.0,0.00011063,2]
[422072267,1778550639000,-500.0,0.00011067,2]
[422072271,1778550639000,-500.0,0.00011067,2]
[422072270,1778550639000,-500.0,0.00011067,2]
[422072264,1778550639000,-500.0,0.00011067,2]
[422072269,1778550639000,-500.0,0.00011067,2]
[422072273,1778550639000,-4011.8255257,0.00011068,2]
[422072276,1778550639000,-694028.03855904,0.00011132,2]
[422072182,1778550639000,-1528.26,0.00010958,2]
[422072258,1778550639000,-300.0,0.00011063,2]
[422072239,1778550639000,-500.0,0.00011062,2]
[422072253,1778550639000,-300.0,0.00011063,2]
[422072233,1778550639000,-161.621689,0.00011049,2]
[422072184,1778550639000,-2274.81,0.00010958,2]
[422072176,1778550639000,-2267.56,0.00010958,2]
[422072174,1778550639000,-1909.65,0.00010958,2]
[422072186,1778550639000,-935.49,0.00010958,2]
[422072196,1778550639000,-500.0,0.00010958,2]
[422072197,1778550639000,-500.0,0.00010958,2]
[422072235,1778550639000,-160.0,0.00011049,2]
[422072203,1778550639000,-512.54,0.00010958,2]
[422072202,1778550639000,-314.61573919,0.00010958,2]
[422072187,1778550639000,-500.0,0.00010958,2]
[422072189,1778550639000,-1799.8,0.00010958,2]
[422072274,1778550639000,-218.8483611,0.00011068,2]
[422072191,1778550639000,-988.12,0.00010958,2]
[422072194,1778550639000,-500.0,0.00010958,2]
[422072200,1778550639000,-640.71,0.00010958,2]
[422072210,1778550639000,-1416.69,0.00010958,2]
[422072212,1778550639000,-522.64,0.00010958,2]
[422072214,1778550639000,-500.0,0.00010958,2]
[422072217,1778550639000,-896.17,0.00010958,2]
[422072221,1778550639000,-500.0,0.00010958,2]
[422072215,1778550639000,-1077.81,0.00010958,2]
[422072232,1778550639000,-300.3386757,0.00011,2]
[422072220,1778550639000,-500.0,0.00010958,2]
[422072223,1778550639000,-939.6,0.00010958,2]
[422072230,1778550639000,-15000.0,0.00010959,2]
[422072227,1778550639000,-506.25448261,0.00010958,2]
[422072226,1778550639000,-500.0,0.00010958,2]
[422072207,1778550639000,-626.02,0.00010958,2]
[422072374,1778550641000,-592.82535572,0.00010848,2]
[422072376,1778550641000,-612.47728457,0.00010848,2]
[422072389,1778550641000,-8146.47104096,0.00011132,2]
[422072387,1778550641000,-1863.65412909,0.00010848,2]
[422072722,1778550643000,-628.78756458,0.00011132,2]
[422072712,1778550643000,-500.0,0.00010958,2]
[422072714,1778550643000,-114500.0,0.00011132,2]
[422072743,1778550644000,-1297.21331,0.00011132,2]
[422072751,1778550644000,-335.67000002,0.00011132,2]
[422073152,1778550647000,-1221.00893159,0.00011021,2]
[422073154,1778550647000,-22806.15484608,0.00011132,2]
[422073156,1778550647000,-958.5,0.00011132,2]
[422073127,1778550647000,-3778.99106841,0.00011021,2]
[422073691,1778551832000,-354.30710025,7.6e-05,2]
[422073682,1778551832000,-531.43857405,7.6e-05,2]
[422073693,1778551832000,-333.30202226,8.8e-05,2]
[422073674,1778551832000,-301.39870547,7.6e-05,2]
[422073699,1778551832000,-344.67741304,0.0001,2]
[422073703,1778551832000,-1980.1863641,0.0001,2]
[422073695,1778551832000,-300.0,9.999e-05,2]
[422073701,1778551832000,-27.30318693,0.0001,2]
[422073697,1778551832000,-22.02750704,0.0001,2]
[422074111,1778551841000,-1132.58312596,0.0001,2]
[422074096,1778551841000,-1114.78000968,0.0001,2]
[422074506,1778551844000,-1765.98000879,0.00010858,2]
[422074508,1778551844000,-10761.59009531,0.00010858,2]
[422074502,1778551844000,-456.3037067,0.00010693,2]
[422074504,1778551844000,-393.29638627,0.000108,2]
[422074500,1778551844000,-197.4439382,0.00010693,2]
[422074498,1778551844000,-243.9737645,0.00010684,2]
[422074496,1778551844000,-324.6868819,0.00010075,2]
[422074495,1778551844000,-745.14731333,0.0001,2]
[422074815,1778551847000,-1574.63092466,0.00010858,2]
[422074817,1778551847000,-1306.9429,0.00010958,2]
[422074808,1778551847000,-3641.0530153,0.00010858,2]
[422074821,1778551847000,-500.0,0.00010958,2]
[422074819,1778551847000,-500.0,0.00010958,2]
[422074825,1778551847000,-138.51278854,0.00010958,2]
[422074823,1778551847000,-500.0,0.00010958,2]
[422076469,1778553032000,-669.85014291,0.0001,2]
[422076613,1778553038000,-232.89388052,0.00010684,2]
[422076609,1778553038000,-349.4418418,0.00010057,2]
[422076610,1778553038000,-743.35003978,0.00010113,2]
[422076612,1778553038000,-151.5,0.00010684,2]
[422076607,1778553038000,-4330.14985709,0.0001,2]
[422076615,1778553038000,-300.0,0.00010757,2]
[422076624,1778553039000,-265.07044583,0.00010779,2]
[422076626,1778553039000,-500.0,0.00010779,2]
[422076630,1778553039000,-527218.68519186,0.0001078,2]
[422076632,1778553039000,-362.16793648,0.0001078,2]
[422076629,1778553039000,-913715.64170092,0.0001078,2]
[422076618,1778553039000,-4484.32495392,0.00010758,2]
[422076620,1778553039000,-500.0,0.00010779,2]
[422076623,1778553039000,-500.0,0.00010779,2]
[422076627,1778553039000,-500.0,0.00010779,2]
[422076634,1778553039000,-750.95810675,0.0001078,2]
[422076616,1778553039000,-531.0,0.00010757,2]
[422076621,1778553039000,-500.0,0.00010779,2]
[422077539,1778553047000,-2725.03366528,0.0001078,2]
[422077574,1778553047000,-3145.43678463,0.0001078,2]
[422078647,1778554114000,433.64864394,0.0001,30]
[422078646,1778554114000,9566.35135606,0.0001,30]
[422078728,1778554238000,-342.45300497,9.999e-05,2]
[422078727,1778554238000,-300.0,9.999e-05,2]
[422078729,1778554238000,-500.0,0.0001,2]
[422078730,1778554238000,-1787.0138635,0.0001,2]
[422078731,1778554238000,-875.25856369,0.0001,2]
[422078733,1778554238000,-3181.08845481,0.0001,2]
[422078736,1778554238000,-500.0,0.00010557,2]
[422078732,1778554238000,-943.6529815,0.0001,2]
[422078735,1778554238000,-324.148,0.00010445,2]
[422078748,1778554238000,-500.0,0.00010557,2]
[422078749,1778554238000,-264.62581325,0.00010557,2]
[422078734,1778554238000,-179.4468794,0.00010012,2]
[422078740,1778554238000,-500.0,0.00010557,2]
[422078738,1778554238000,-397.79636926,0.00010557,2]
[422078741,1778554238000,-500.0,0.00010557,2]
[422078742,1778554238000,-500.0,0.00010557,2]
[422078739,1778554238000,-500.0,0.00010557,2]
[422078737,1778554238000,-205.9664677,0.00010557,2]
[422078743,1778554238000,-500.0,0.00010557,2]
[422078744,1778554238000,-500.0,0.00010557,2]
[422078746,1778554238000,-500.0,0.00010557,2]
[422078745,1778554238000,-410.37676136,0.00010557,2]
[422078747,1778554238000,-500.0,0.00010557,2]
[422078750,1778554238000,-2131.9463053,0.00010558,2]
[422078961,1778554246000,-2325.09581131,0.00010453,2]
[422078970,1778554246000,-8638.95902304,0.00010558,2]
[422078971,1778554246000,-10082.56659542,0.00010558,2]
[422078969,1778554246000,-2674.90418869,0.00010453,2]
[422079106,1778555433000,-131.32340796,9.425e-05,2]
[422079105,1778555433000,-325.8289405,9.07e-05,2]
[422079108,1778555433000,-74.8465119,9.616e-05,2]
[422079107,1778555433000,-232.1907942,9.425e-05,2]
[422079110,1778555433000,-325.805033,9.904e-05,2]
[422079109,1778555433000,-269.08674733,9.616e-05,2]
[422079111,1778555433000,-4591.10821967,0.0001,2]
[422079113,1778555433000,-169.95,0.00010384,2]
[422079116,1778555433000,-300.0,0.00010456,2]
[422079119,1778555433000,-300.0,0.00010456,2]
[422079112,1778555433000,-408.89178033,0.0001,2]
[422079120,1778555433000,-1200.0,0.00010456,2]
[422079129,1778555433000,-3961.05656931,0.00010658,2]
[422079128,1778555433000,-17657.68799841,0.00010658,2]
[422079126,1778555433000,-196.06953481,0.00010657,2]
[422079125,1778555433000,-500.0,0.00010657,2]
[422079127,1778555433000,-6330.47270478,0.00010658,2]
[422079114,1778555433000,-174.9,0.0001041,2]
[422079123,1778555433000,-378.45745848,0.00010657,2]
[422079122,1778555433000,-500.0,0.00010657,2]
[422079118,1778555433000,-300.0,0.00010456,2]
[422079121,1778555433000,-500.0,0.00010657,2]
[422079124,1778555433000,-500.0,0.00010657,2]
[422079436,1778555440000,-485.41477843,0.00010658,2]
[422079434,1778555440000,-402.18407659,0.00010552,2]
[422079428,1778555440000,-2832.42978612,0.00010552,2]
[422079426,1778555440000,-1765.38613729,0.00010552,2]
[422079823,1778555443000,-414.25839924,0.00010658,2]
[422079821,1778555443000,-17538.03227847,0.00010658,2]
[422079792,1778555443000,-2220.94122709,0.00010658,2]
[422079785,1778555443000,-4042.89343697,0.00010658,2]
[422079782,1778555443000,-2653.8385751,0.00010658,2]
[422080149,1778555446000,-3842.9861377,0.00010658,2]
[422080183,1778555446000,-2404.99956709,0.00010658,2]
[422080181,1778555446000,-116395.61127986,0.00010658,2]
[422081516,1778556632000,-2743.41883502,9.5e-05,2]
[422081712,1778556638000,-151.0,0.00010574,2]
[422081711,1778556638000,-151.0,0.00010574,2]
[422081718,1778556638000,-151.0,0.00010574,2]
[422081713,1778556638000,-151.0,0.00010574,2]
[422081714,1778556638000,-151.0,0.00010574,2]
[422081715,1778556638000,-151.0,0.00010574,2]
[422081719,1778556638000,-151.0,0.00010574,2]
[422081720,1778556638000,-151.0,0.00010574,2]
[422081723,1778556638000,-151.0,0.00010574,2]
[422081721,1778556638000,-151.0,0.00010574,2]
[422081725,1778556638000,-172.17522243,0.00010574,2]
[422081726,1778556638000,-1094.8963037,0.00010595,2]
[422081728,1778556638000,-578.20924308,0.00010684,2]
[422081724,1778556638000,-151.0,0.00010574,2]
[422081716,1778556638000,-151.0,0.00010574,2]
[422081722,1778556638000,-151.0,0.00010574,2]
[422081729,1778556638000,-599.60298507,0.00010739,2]
[422081703,1778556638000,-569.13215346,0.00010483,2]
[422081709,1778556638000,-151.0,0.00010574,2]
[422081693,1778556638000,-136357.90116498,9.5e-05,2]
[422081695,1778556638000,-151.0,9.877e-05,2]
[422081694,1778556638000,-355.49096606,9.567e-05,2]
[422081696,1778556638000,-151.0,9.877e-05,2]
[422081697,1778556638000,-189.49,0.0001,2]
[422081702,1778556638000,-500.0,0.00010483,2]
[422081727,1778556638000,-557.5788265,0.00010629,2]
[422081717,1778556638000,-151.0,0.00010574,2]
[422081698,1778556638000,-189.49,0.0001,2]
[422081701,1778556638000,-235.13567871,0.00010483,2]
[422081706,1778556638000,-161.24169058,0.000105,2]
[422081700,1778556638000,-1296.16464554,0.0001,2]
[422081704,1778556638000,-160.69795567,0.00010483,2]
[422081705,1778556638000,-431.24874142,0.00010483,2]
[422081707,1778556638000,-189.21879729,0.000105,2]
[422081708,1778556638000,-537.6845,0.00010574,2]
[422081699,1778556638000,-5000.0,0.0001,2]
[422081733,1778556638000,-151.0,0.00010757,2]
[422081710,1778556638000,-151.0,0.00010574,2]
[422081730,1778556638000,-500.0,0.00010757,2]
[422081756,1778556638000,-218.9156507,0.00010757,2]
[422081757,1778556638000,-325.8415176,0.00010757,2]
[422081755,1778556638000,-325.805033,0.00010757,2]
[422081758,1778556638000,-151.0,0.00010757,2]
[422081754,1778556638000,-325.805033,0.00010757,2]
[422081759,1778556638000,-325.8050331,0.00010757,2]
[422081761,1778556638000,-3004.20363543,0.00010758,2]
[422081752,1778556638000,-325.805033,0.00010757,2]
[422081753,1778556638000,-151.0,0.00010757,2]
[422081760,1778556638000,-751.80271157,0.00010758,2]
[422081764,1778556638000,-636.44731816,0.00010794,2]
[422081763,1778556638000,-1200.92646314,0.00010758,2]
[422081767,1778556638000,-223.15928704,0.00010957,2]
[422081765,1778556638000,-1709.21075586,0.00010813,4]
[422081768,1778556638000,-500.0,0.00010957,2]
[422081734,1778556638000,-212.4027386,0.00010757,2]
[422081762,1778556638000,-300.53214793,0.00010758,2]
[422081751,1778556638000,-326.9118128,0.00010757,2]
[422081766,1778556638000,-156.376,0.00010957,2]
[422081750,1778556638000,-325.805033,0.00010757,2]
[422081749,1778556638000,-151.0,0.00010757,2]
[422081731,1778556638000,-456.3497628,0.00010757,2]
[422081737,1778556638000,-151.0,0.00010757,2]
[422081735,1778556638000,-151.0,0.00010757,2]
[422081740,1778556638000,-406.178999,0.00010757,2]
[422081738,1778556638000,-456.3497628,0.00010757,2]
[422081741,1778556638000,-151.0,0.00010757,2]
[422081736,1778556638000,-151.0,0.00010757,2]
[422081743,1778556638000,-456.4199449,0.00010757,2]
[422081748,1778556638000,-325.8289405,0.00010757,2]
[422081739,1778556638000,-456.3999724,0.00010757,2]
[422081742,1778556638000,-151.0,0.00010757,2]
[422081732,1778556638000,-325.805033,0.00010757,2]
[422081747,1778556638000,-325.8289405,0.00010757,2]
[422081746,1778556638000,-151.0,0.00010757,2]
[422081744,1778556638000,-151.0,0.00010757,2]
[422081745,1778556638000,-456.3999724,0.00010757,2]
[422081805,1778556639000,-500.0,0.00010958,2]
[422081815,1778556639000,-500.0,0.00010958,2]
[422081816,1778556639000,-500.0,0.00010958,2]
[422081814,1778556639000,-500.0,0.00010958,2]
[422081813,1778556639000,-976.63,0.00010958,2]
[422081809,1778556639000,-1028.84,0.00010958,2]
[422081804,1778556639000,-500.0,0.00010958,2]
[422081811,1778556639000,-500.0,0.00010958,2]
[422081808,1778556639000,-259.319,0.00010958,2]
[422081807,1778556639000,-523.22,0.00010958,2]
[422081806,1778556639000,-500.0,0.00010958,2]
[422081818,1778556639000,-900.45,0.00010958,2]
[422081810,1778556639000,-500.0,0.00010958,2]
[422081812,1778556639000,-177.93719727,0.00010958,2]
[422081822,1778556639000,-2881.57,0.00010958,2]
[422081819,1778556639000,-500.0,0.00010958,2]
[422081828,1778556639000,-500.0,0.00010958,2]
[422081821,1778556639000,-660.6,0.00010958,2]
[422081823,1778556639000,-500.0,0.00010958,2]
[422081824,1778556639000,-500.0,0.00010958,2]
[422081826,1778556639000,-677.92,0.00010958,2]
[422081820,1778556639000,-500.0,0.00010958,2]
[422081825,1778556639000,-500.0,0.00010958,2]
[422081827,1778556639000,-1956.91,0.00010958,2]
[422081829,1778556639000,-566.55,0.00010958,2]
[422081830,1778556639000,-500.0,0.00010958,2]
[422081831,1778556639000,-500.0,0.00010958,2]
[422081842,1778556639000,-500.0,0.00010958,2]
[422081803,1778556639000,-500.0,0.00010958,2]
[422081817,1778556639000,-1032.9,0.00010958,2]
[422081801,1778556639000,-500.0,0.00010958,2]
[422081783,1778556639000,-500.0,0.00010958,2]
[422081798,1778556639000,-500.0,0.00010958,2]
[422081832,1778556639000,-859.7,0.00010958,2]
[422081770,1778556639000,-500.0,0.00010957,2]
[422081771,1778556639000,-500.0,0.00010957,2]
[422081769,1778556639000,-500.0,0.00010957,2]
[422081772,1778556639000,-500.0,0.00010957,2]
[422081774,1778556639000,-500.0,0.00010957,2]
[422081775,1778556639000,-500.0,0.00010957,2]
[422081773,1778556639000,-500.0,0.00010957,2]
[422081777,1778556639000,-281.41362675,0.00010957,2]
[422081776,1778556639000,-500.0,0.00010957,2]
[422081779,1778556639000,-500.83975015,0.00010958,2]
[422081778,1778556639000,-888.8726,0.00010958,2]
[422081780,1778556639000,-500.0,0.00010958,2]
[422081785,1778556639000,-629.40178577,0.00010958,2]
[422081797,1778556639000,-500.0,0.00010958,2]
[422081781,1778556639000,-500.0,0.00010958,2]
[422081784,1778556639000,-500.0,0.00010958,2]
[422081787,1778556639000,-500.0,0.00010958,2]
[422081786,1778556639000,-500.0,0.00010958,2]
[422081788,1778556639000,-500.0,0.00010958,2]
[422081789,1778556639000,-500.0,0.00010958,2]
[422081790,1778556639000,-500.0,0.00010958,2]
[422081800,1778556639000,-500.0,0.00010958,2]
[422081793,1778556639000,-500.0,0.00010958,2]
[422081794,1778556639000,-500.0,0.00010958,2]
[422081791,1778556639000,-500.0,0.00010958,2]
[422081792,1778556639000,-500.0,0.00010958,2]
[422081795,1778556639000,-500.0,0.00010958,2]
[422081796,1778556639000,-1013.41,0.00010958,2]
[422081799,1778556639000,-500.0,0.00010958,2]
[422081782,1778556639000,-500.0,0.00010958,2]
[422081837,1778556639000,-500.0,0.00010958,2]
[422081802,1778556639000,-500.0,0.00010958,2]
[422081835,1778556639000,-933.45,0.00010958,2]
[422081870,1778556639000,-151.0,0.00010958,2]
[422081872,1778556639000,-151.0,0.00010958,2]
[422081873,1778556639000,-151.0,0.00010958,2]
[422081883,1778556639000,-298.2,0.00010959,2]
[422081879,1778556639000,-1097.54,0.00010958,2]
[422081884,1778556639000,-15000.0,0.00010959,2]
[422081877,1778556639000,-500.0,0.00010958,2]
[422081875,1778556639000,-500.0,0.00010958,2]
[422081882,1778556639000,-1295.96,0.00010958,2]
[422081876,1778556639000,-294.28002911,0.00010958,2]
[422081880,1778556639000,-500.0,0.00010958,2]
[422081878,1778556639000,-599.93,0.00010958,2]
[422081885,1778556639000,-549.90771736,0.00011,2]
[422081886,1778556639000,-160.0,0.00011021,2]
[422081871,1778556639000,-500.0,0.00010958,2]
[422081894,1778556639000,-500.0,0.00011232,2]
[422081890,1778556639000,-1424.4464,0.00011232,2]
[422081888,1778556639000,-160.0,0.00011021,2]
[422081892,1778556639000,-500.32893525,0.00011232,2]
[422081889,1778556639000,-160.0,0.00011162,3]
[422081887,1778556639000,-161.62975969,0.00011021,2]
[422081891,1778556639000,-500.0,0.00011232,2]
[422081895,1778556639000,-500.0,0.00011232,2]
[422081897,1778556639000,-500.0,0.00011232,2]
[422081896,1778556639000,-500.0,0.00011232,2]
[422081898,1778556639000,-500.0,0.00011232,2]
[422081899,1778556639000,-500.0,0.00011232,2]
[422081901,1778556639000,-500.0,0.00011232,2]
[422081902,1778556639000,-459.26385598,0.00011232,2]
[422081841,1778556639000,-425.15021354,0.00010958,2]
[422081893,1778556639000,-500.0,0.00011232,2]
[422081867,1778556639000,-501.87090801,0.00010958,2]
[422081874,1778556639000,-151.0,0.00010958,2]
[422081900,1778556639000,-500.0,0.00011232,2]
[422081854,1778556639000,-500.0,0.00010958,2]
[422081847,1778556639000,-2173.08,0.00010958,2]
[422081846,1778556639000,-500.0,0.00010958,2]
[422081855,1778556639000,-1464.58,0.00010958,2]
[422081848,1778556639000,-500.0,0.00010958,2]
[422081845,1778556639000,-500.0,0.00010958,2]
[422081852,1778556639000,-1831.58,0.00010958,2]
[422081844,1778556639000,-1538.45,0.00010958,2]
[422081863,1778556639000,-946.94,0.00010958,2]
[422081836,1778556639000,-2525.99,0.00010958,2]
[422081833,1778556639000,-500.0,0.00010958,2]
[422081834,1778556639000,-692.51,0.00010958,2]
[422081838,1778556639000,-1667.13,0.00010958,2]
[422081839,1778556639000,-500.0,0.00010958,2]
[422081843,1778556639000,-555.6,0.00010958,2]
[422081850,1778556639000,-500.0,0.00010958,2]
[422081840,1778556639000,-1565.77,0.00010958,2]
[422081849,1778556639000,-11685.93,0.00010958,2]
[422081853,1778556639000,-2180.02,0.00010958,2]
[422081866,1778556639000,-858.83,0.00010958,2]
[422081865,1778556639000,-1357.66,0.00010958,2]
[422081862,1778556639000,-500.0,0.00010958,2]
[422081868,1778556639000,-500.0,0.00010958,2]
[422081864,1778556639000,-500.0,0.00010958,2]
[422081860,1778556639000,-1724.81,0.00010958,2]
[422081861,1778556639000,-500.0,0.00010958,2]
[422081869,1778556639000,-151.0,0.00010958,2]
[422081859,1778556639000,-500.0,0.00010958,2]
[422081856,1778556639000,-896.51,0.00010958,2]
[422081857,1778556639000,-614.01,0.00010958,2]
[422081851,1778556639000,-500.0,0.00010958,2]
[422081858,1778556639000,-500.0,0.00010958,2]
[422081921,1778556640000,-500.0,0.00011232,2]
[422081916,1778556640000,-500.0,0.00011232,2]
[422081920,1778556640000,-500.0,0.00011232,2]
[422081917,1778556640000,-500.0,0.00011232,2]
[422081919,1778556640000,-1028.84,0.00011232,2]
[422081923,1778556640000,-151.0,0.00011232,2]
[422081915,1778556640000,-500.0,0.00011232,2]
[422081918,1778556640000,-523.22,0.00011232,2]
[422081925,1778556640000,-151.0,0.00011232,2]
[422081913,1778556640000,-500.0,0.00011232,2]
[422081903,1778556640000,-500.0,0.00011232,2]
[422081908,1778556640000,-500.0,0.00011232,2]
[422081910,1778556640000,-500.0,0.00011232,2]
[422081906,1778556640000,-1013.41,0.00011232,2]
[422081907,1778556640000,-500.0,0.00011232,2]
[422081909,1778556640000,-500.0,0.00011232,2]
[422081911,1778556640000,-500.0,0.00011232,2]
[422081904,1778556640000,-500.0,0.00011232,2]